[Event "Titled Tuesday Blitz July 05 Late 2022"]
[White "Barria Zuniga, Daniel"]
[Black "Vakhlamov, Igor L."]
[WhiteFideId "3400816"]
[BlackFideId "24126748"]
[WhiteElo "2414"]
[BlackElo "2401"]
[Result "1-0"]
[Round "08"]
[TimeControl "180+1"]
[Date "2022.07.05"]
[WhiteClock "0:00:24"]
[BlackClock "0:00:25"]

1. d4 {[%clk 0:03:00]}  d5 {[%clk 0:03:00]} 2. c4 {[%clk 0:03:00]}  e6 {[%clk 0:03:00]} 3. Nf3 {[%clk 0:03:00]}  Nf6 {[%clk 0:03:00]} 4. Nc3 {[%clk 0:03:00]}  c5 {[%clk 0:03:00]} 5. Bg5 {[%clk 0:02:59]}  cxd4 {[%clk 0:02:53]} 6. Qxd4 {[%clk 0:03:00]}  Nc6 {[%clk 0:02:46]} 7. Bxf6 {[%clk 0:03:00]}  gxf6 {[%clk 0:02:47]} 8. Qh4 {[%clk 0:03:00]}  d4 {[%clk 0:02:30]} 9. O-O-O {[%clk 0:02:59]}  e5 {[%clk 0:02:30]} 10. e3 {[%clk 0:02:56]}  Rg8 {[%clk 0:01:13]} 11. h3 {[%clk 0:02:28]}  Bc5 {[%clk 0:01:04]} 12. Nd5 {[%clk 0:02:19]}  Rg6 {[%clk 0:01:03]} 13. Bd3 {[%clk 0:02:12]}  f5 {[%clk 0:01:00]} 14. exd4 {[%clk 0:02:06]}  Bxd4 {[%clk 0:00:41]} 15. Qxh7 {[%clk 0:02:01]}  Be6 {[%clk 0:00:41]} 16. Nxd4 {[%clk 0:01:49]}  Nxd4 {[%clk 0:00:42]} 17. Qh8+ {[%clk 0:01:49]}  Kd7 {[%clk 0:00:41]} 18. Qxe5 {[%clk 0:01:49]}  Nc6 {[%clk 0:00:34]} 19. Qe3 {[%clk 0:01:35]}  Rxg2 {[%clk 0:00:21]} 20. Nf4 {[%clk 0:01:29]}  Qg5 {[%clk 0:00:14]} 21. Bxf5+ {[%clk 0:01:26]}  Kc7 {[%clk 0:00:12]} 22. Bxe6 {[%clk 0:01:23]}  Re8 {[%clk 0:00:08]} 23. Rd7+ {[%clk 0:01:20]}  Kb8 {[%clk 0:00:07]} 24. Nxg2 {[%clk 0:01:14]}  Qg6 {[%clk 0:00:05]} 25. Qg3+ {[%clk 0:01:11]}  Qxg3 {[%clk 0:00:05]} 26. fxg3 {[%clk 0:01:12]}  Rxe6 {[%clk 0:00:05]} 27. h4 {[%clk 0:00:32]}  Re2 {[%clk 0:00:03]} 28. Nf4 {[%clk 0:00:31]}  Re3 {[%clk 0:00:03]} 29. h5 {[%clk 0:00:30]}  Ne5 {[%clk 0:00:03]} 30. Rd5 {[%clk 0:00:17]}  Nxc4 {[%clk 0:00:01]} 31. h6 {[%clk 0:00:17]}  Re8 {[%clk 0:00:02]} 32. h7 {[%clk 0:00:17]}  Rh8 {[%clk 0:00:02]} 33. Rg5 {[%clk 0:00:17]}  Kc7 {[%clk 0:00:02]} 34. Rg8 {[%clk 0:00:17]}  Rxh7 {[%clk 0:00:03]} 35. Rxh7 {[%clk 0:00:18]}  Kc6 {[%clk 0:00:02]} 36. Rxf7 {[%clk 0:00:18]}  a5 {[%clk 0:00:03]} 37. Rc8+ {[%clk 0:00:17]}  Kb5 {[%clk 0:00:03]} 38. Rxc4 {[%clk 0:00:18]}  Kxc4 {[%clk 0:00:04]} 39. Rxb7 {[%clk 0:00:17]}  a4 {[%clk 0:00:05]} 40. a3 {[%clk 0:00:17]}  Kd4 {[%clk 0:00:05]} 41. Rb4+ {[%clk 0:00:15]}  Ke3 {[%clk 0:00:06]} 42. Rxa4 {[%clk 0:00:15]}  Kf3 {[%clk 0:00:06]} 43. Nh3 {[%clk 0:00:15]}  Kg2 {[%clk 0:00:07]} 44. Ng1 {[%clk 0:00:15]}  Kf2 {[%clk 0:00:07]} 45. Rc4 {[%clk 0:00:13]}  Ke3 {[%clk 0:00:08]} 46. Rc3+ {[%clk 0:00:14]}  Kd4 {[%clk 0:00:08]} 47. Nh3 {[%clk 0:00:14]}  Ke4 {[%clk 0:00:09]} 48. Nf2+ {[%clk 0:00:13]}  Kf5 {[%clk 0:00:10]} 49. Nh1 {[%clk 0:00:14]}  Ke5 {[%clk 0:00:11]} 50. Kd2 {[%clk 0:00:14]}  Ke4 {[%clk 0:00:11]} 51. Ke2 {[%clk 0:00:14]}  Kf5 {[%clk 0:00:12]} 52. Kf2 {[%clk 0:00:15]}  Kg4 {[%clk 0:00:13]} 53. Kg2 {[%clk 0:00:16]}  Kf5 {[%clk 0:00:13]} 54. Kf3 {[%clk 0:00:16]}  Ke5 {[%clk 0:00:14]} 55. Rc4 {[%clk 0:00:16]}  Kd5 {[%clk 0:00:14]} 56. Re4 {[%clk 0:00:17]}  Kc5 {[%clk 0:00:14]} 57. Ke3 {[%clk 0:00:18]}  Kd5 {[%clk 0:00:15]} 58. Nf2 {[%clk 0:00:18]}  Kd6 {[%clk 0:00:16]} 59. g4 {[%clk 0:00:19]}  Kd5 {[%clk 0:00:17]} 60. g5 {[%clk 0:00:20]}  Kc5 {[%clk 0:00:18]} 61. g6 {[%clk 0:00:20]}  Kd5 {[%clk 0:00:19]} 62. g7 {[%clk 0:00:21]}  Kd6 {[%clk 0:00:19]} 63. g8=Q {[%clk 0:00:22]}  Kd7 {[%clk 0:00:20]} 64. Qg4+ {[%clk 0:00:22]}  Kd6 {[%clk 0:00:21]} 65. Qg3+ {[%clk 0:00:23]}  Kc5 {[%clk 0:00:22]} 66. Rg4 {[%clk 0:00:23]}  Kd5 {[%clk 0:00:22]} 67. Qh3 {[%clk 0:00:23]}  Ke6 {[%clk 0:00:23]} 68. Qh6+ {[%clk 0:00:23]}  Kf5 {[%clk 0:00:24]} 69. Qh5+ {[%clk 0:00:24]}  Kf6 {[%clk 0:00:25]} 70. Rg6+ {[%clk 0:00:24]}  Kf7 {[%clk 0:00:26]} 71. Qh7+ {[%clk 0:00:24]}  Kf8 {[%clk 0:00:25]} 72. Rg8# {[%clk 0:00:24]} 1-0


[Site "https://www.chess.com"]

[Event "Titled Tuesday Blitz July 05 Late 2022"]
[White "Bortnyk, Olexandr"]
[Black "Ibarra Jerez, Jose Carlos"]
[WhiteFideId "14120828"]
[BlackFideId "2226332"]
[WhiteElo "2723"]
[BlackElo "2628"]
[Result "1-0"]
[Round "08"]
[TimeControl "180+1"]
[Date "2022.07.05"]
[WhiteClock "0:00:31"]
[BlackClock "0:00:18"]

1. d4 {[%clk 0:03:00]}  Nf6 {[%clk 0:02:58]} 2. Nc3 {[%clk 0:03:01]}  d5 {[%clk 0:02:59]} 3. Bf4 {[%clk 0:03:01]}  c5 {[%clk 0:02:58]} 4. e4 {[%clk 0:03:02]}  Nxe4 {[%clk 0:02:57]} 5. Nxe4 {[%clk 0:03:01]}  dxe4 {[%clk 0:02:57]} 6. d5 {[%clk 0:03:02]}  Qb6 {[%clk 0:02:34]} 7. Ne2 {[%clk 0:02:51]}  g6 {[%clk 0:02:30]} 8. Be5 {[%clk 0:02:39]}  f6 {[%clk 0:02:29]} 9. Bc3 {[%clk 0:02:39]}  Rg8 {[%clk 0:01:59]} 10. Ng3 {[%clk 0:02:39]}  f5 {[%clk 0:01:59]} 11. Bc4 {[%clk 0:02:35]}  Bg7 {[%clk 0:01:54]} 12. d6 {[%clk 0:02:31]}  e6 {[%clk 0:01:51]} 13. Qd2 {[%clk 0:02:23]}  Nc6 {[%clk 0:01:44]} 14. Bxg7 {[%clk 0:01:09]}  Rxg7 {[%clk 0:01:44]} 15. O-O-O {[%clk 0:01:04]}  Bd7 {[%clk 0:01:35]} 16. Qg5 {[%clk 0:00:50]}  Qd8 {[%clk 0:01:30]} 17. Qh6 {[%clk 0:00:50]}  Rf7 {[%clk 0:01:20]} 18. f3 {[%clk 0:00:47]}  exf3 {[%clk 0:01:16]} 19. Rhe1 {[%clk 0:00:33]}  Qf6 {[%clk 0:01:16]} 20. Bxe6 {[%clk 0:00:32]}  Bxe6 {[%clk 0:00:54]} 21. Nh5 {[%clk 0:00:32]}  Qh4 {[%clk 0:00:18]} 22. Ng7+ {[%clk 0:00:31]} 1-0


[Site "https://www.chess.com"]

[Event "Titled Tuesday Blitz July 05 Late 2022"]
[White "Chernobay, Artem"]
[Black "Jeet, Jain"]
[WhiteFideId "4167406"]
[BlackFideId "5073022"]
[WhiteElo "2473"]
[BlackElo "2055"]
[Result "1-0"]
[Round "08"]
[TimeControl "180+1"]
[Date "2022.07.05"]
[WhiteClock "0:00:35"]
[BlackClock "0:00:44"]

1. d4 {[%clk 0:03:00]}  Nf6 {[%clk 0:02:56]} 2. c4 {[%clk 0:03:01]}  g6 {[%clk 0:02:55]} 3. Nc3 {[%clk 0:03:01]}  Bg7 {[%clk 0:02:55]} 4. e4 {[%clk 0:03:00]}  d6 {[%clk 0:02:56]} 5. Nf3 {[%clk 0:03:01]}  O-O {[%clk 0:02:56]} 6. Be2 {[%clk 0:03:02]}  Na6 {[%clk 0:02:57]} 7. O-O {[%clk 0:03:01]}  Bg4 {[%clk 0:02:57]} 8. Be3 {[%clk 0:02:42]}  Bxf3 {[%clk 0:02:56]} 9. Bxf3 {[%clk 0:02:42]}  c5 {[%clk 0:02:57]} 10. e5 {[%clk 0:02:29]}  cxd4 {[%clk 0:02:56]} 11. exf6 {[%clk 0:02:28]}  Bxf6 {[%clk 0:02:40]} 12. Bxd4 {[%clk 0:02:26]}  Bxd4 {[%clk 0:02:40]} 13. Qxd4 {[%clk 0:02:26]}  Nc5 {[%clk 0:02:39]} 14. Rfe1 {[%clk 0:02:09]}  Rc8 {[%clk 0:02:37]} 15. b3 {[%clk 0:02:09]}  Qa5 {[%clk 0:02:33]} 16. b4 {[%clk 0:02:02]}  Qxb4 {[%clk 0:02:32]} 17. Nd5 {[%clk 0:02:01]}  e5 {[%clk 0:02:25]} 18. Qh4 {[%clk 0:01:47]}  Qb2 {[%clk 0:02:15]} 19. Qf6 {[%clk 0:01:35]}  Rce8 {[%clk 0:02:09]} 20. Qxd6 {[%clk 0:01:34]}  b6 {[%clk 0:01:54]} 21. Nf6+ {[%clk 0:01:29]}  Kg7 {[%clk 0:01:54]} 22. Nxe8+ {[%clk 0:01:28]}  Rxe8 {[%clk 0:01:55]} 23. h3 {[%clk 0:01:21]}  e4 {[%clk 0:01:50]} 24. Rad1 {[%clk 0:01:16]}  Re6 {[%clk 0:01:46]} 25. Qd4+ {[%clk 0:01:08]}  Qxd4 {[%clk 0:01:46]} 26. Rxd4 {[%clk 0:01:09]}  exf3 {[%clk 0:01:47]} 27. Rxe6 {[%clk 0:01:08]}  Nxe6 {[%clk 0:01:48]} 28. Rd7 {[%clk 0:01:08]}  fxg2 {[%clk 0:01:48]} 29. Rxa7 {[%clk 0:01:06]}  Nf4 {[%clk 0:01:47]} 30. Rb7 {[%clk 0:01:04]}  h5 {[%clk 0:01:47]} 31. Rxb6 {[%clk 0:01:04]}  g5 {[%clk 0:01:46]} 32. f3 {[%clk 0:00:52]}  f5 {[%clk 0:01:41]} 33. Rb2 {[%clk 0:00:49]}  h4 {[%clk 0:01:33]} 34. Rxg2 {[%clk 0:00:44]}  Nxg2 {[%clk 0:01:29]} 35. Kxg2 {[%clk 0:00:45]}  Kf6 {[%clk 0:01:29]} 36. a4 {[%clk 0:00:42]}  Ke6 {[%clk 0:01:30]} 37. a5 {[%clk 0:00:42]}  Kd6 {[%clk 0:01:30]} 38. a6 {[%clk 0:00:41]}  Kc6 {[%clk 0:01:26]} 39. c5 {[%clk 0:00:40]}  Kc7 {[%clk 0:01:24]} 40. f4 {[%clk 0:00:37]}  gxf4 {[%clk 0:00:54]} 41. Kf3 {[%clk 0:00:37]}  Kb8 {[%clk 0:00:55]} 42. c6 {[%clk 0:00:36]}  Ka8 {[%clk 0:00:43]} 43. c7 {[%clk 0:00:35]}  Ka7 {[%clk 0:00:44]} 44. c8=Q {[%clk 0:00:35]}  Kb6 {[%clk 0:00:44]} 45. Qb7+ {[%clk 0:00:35]} 1-0


[Site "https://www.chess.com"]

[Event "Titled Tuesday Blitz July 05 Late 2022"]
[White "D`Arruda, Ricardo D."]
[Black "Aggelis, Nikolaos"]
[WhiteFideId "100692"]
[BlackFideId "4213220"]
[WhiteElo "2456"]
[BlackElo "2154"]
[Result "1/2-1/2"]
[Round "08"]
[TimeControl "180+1"]
[Date "2022.07.06"]
[WhiteClock "0:00:14"]
[BlackClock "0:00:05"]

1. d4 {[%clk 0:02:54]}  Nf6 {[%clk 0:02:55]} 2. Nf3 {[%clk 0:02:54]}  e6 {[%clk 0:02:55]} 3. g3 {[%clk 0:02:55]}  d5 {[%clk 0:02:54]} 4. Bg2 {[%clk 0:02:55]}  c5 {[%clk 0:02:55]} 5. O-O {[%clk 0:02:54]}  Nc6 {[%clk 0:02:53]} 6. c4 {[%clk 0:02:53]}  cxd4 {[%clk 0:02:53]} 7. Nxd4 {[%clk 0:02:53]}  Bc5 {[%clk 0:02:51]} 8. Nb3 {[%clk 0:02:51]}  Bb6 {[%clk 0:02:50]} 9. Nc3 {[%clk 0:02:49]}  d4 {[%clk 0:02:49]} 10. Na4 {[%clk 0:02:47]}  e5 {[%clk 0:02:48]} 11. f4 {[%clk 0:02:36]}  e4 {[%clk 0:02:10]} 12. f5 {[%clk 0:02:35]}  O-O {[%clk 0:01:59]} 13. Bg5 {[%clk 0:02:34]}  Re8 {[%clk 0:01:58]} 14. Rf4 {[%clk 0:02:29]}  h6 {[%clk 0:01:43]} 15. Bxf6 {[%clk 0:02:28]}  Qxf6 {[%clk 0:01:43]} 16. Nxb6 {[%clk 0:02:27]}  axb6 {[%clk 0:01:42]} 17. Rxe4 {[%clk 0:02:27]}  Bxf5 {[%clk 0:01:41]} 18. Rxe8+ {[%clk 0:02:26]}  Rxe8 {[%clk 0:01:41]} 19. Qd2 {[%clk 0:02:13]}  Qe5 {[%clk 0:01:31]} 20. Rf1 {[%clk 0:02:01]}  Bg4 {[%clk 0:01:22]} 21. Bd5 {[%clk 0:01:49]}  Re7 {[%clk 0:01:07]} 22. Qf4 {[%clk 0:01:29]}  Bxe2 {[%clk 0:00:51]} 23. Bxf7+ {[%clk 0:00:58]}  Kh7 {[%clk 0:00:39]} 24. Re1 {[%clk 0:00:47]}  d3 {[%clk 0:00:27]} 25. Bd5 {[%clk 0:00:45]}  Qxf4 {[%clk 0:00:20]} 26. gxf4 {[%clk 0:00:46]}  Ne5 {[%clk 0:00:20]} 27. fxe5 {[%clk 0:00:44]}  Rxe5 {[%clk 0:00:19]} 28. Kf2 {[%clk 0:00:41]}  Rf5+ {[%clk 0:00:17]} 29. Ke3 {[%clk 0:00:40]}  Rh5 {[%clk 0:00:17]} 30. Rh1 {[%clk 0:00:36]}  Rh3+ {[%clk 0:00:14]} 31. Kd2 {[%clk 0:00:35]}  g5 {[%clk 0:00:12]} 32. Nd4 {[%clk 0:00:35]}  Bg4 {[%clk 0:00:08]} 33. Bg2 {[%clk 0:00:28]}  Rh4 {[%clk 0:00:07]} 34. h3 {[%clk 0:00:26]}  Bh5 {[%clk 0:00:06]} 35. Nf5 {[%clk 0:00:23]}  Rxc4 {[%clk 0:00:05]} 36. Kxd3 {[%clk 0:00:22]}  Rf4 {[%clk 0:00:04]} 37. Be4 {[%clk 0:00:22]}  Bg6 {[%clk 0:00:05]} 38. Nd6 {[%clk 0:00:20]}  Bxe4+ {[%clk 0:00:03]} 39. Nxe4 {[%clk 0:00:21]}  Rf3+ {[%clk 0:00:03]} 40. Ke2 {[%clk 0:00:19]}  Rf4 {[%clk 0:00:02]} 41. Nc3 {[%clk 0:00:18]}  Kg6 {[%clk 0:00:03]} 42. Nd5 {[%clk 0:00:18]}  Rd4 {[%clk 0:00:02]} 43. Nxb6 {[%clk 0:00:17]}  Rb4 {[%clk 0:00:03]} 44. Nd5 {[%clk 0:00:15]}  Rxb2+ {[%clk 0:00:03]} 45. Ke3 {[%clk 0:00:16]}  Rxa2 {[%clk 0:00:03]} 46. Kd4 {[%clk 0:00:14]}  Rb2 {[%clk 0:00:03]} 47. Ne3 {[%clk 0:00:13]}  h5 {[%clk 0:00:03]} 48. Rg1 {[%clk 0:00:13]}  Rb4+ {[%clk 0:00:03]} 49. Ke5 {[%clk 0:00:13]}  g4 {[%clk 0:00:02]} 50. hxg4 {[%clk 0:00:12]}  hxg4 {[%clk 0:00:03]} 51. Rxg4+ {[%clk 0:00:12]}  Rxg4 {[%clk 0:00:03]} 52. Nxg4 {[%clk 0:00:13]}  Kf7 {[%clk 0:00:03]} 53. Kd6 {[%clk 0:00:13]}  Kg6 {[%clk 0:00:03]} 54. Kc5 {[%clk 0:00:13]}  Kg5 {[%clk 0:00:04]} 55. Kb6 {[%clk 0:00:13]}  Kh4 {[%clk 0:00:05]} 56. Kxb7 {[%clk 0:00:14]} 1/2-1/2


[Site "https://www.chess.com"]

[Event "Titled Tuesday Blitz July 05 Late 2022"]
[White "Domingo Nunez, Alejandro"]
[Black "Hansen, Eric"]
[WhiteFideId "22245561"]
[BlackFideId "2606771"]
[WhiteElo "2222"]
[BlackElo "2568"]
[Result "0-1"]
[Round "08"]
[TimeControl "180+1"]
[Date "2022.07.05"]
[WhiteClock "0:00:51"]
[BlackClock "0:01:24"]

1. Nf3 {[%clk 0:03:00]}  g6 {[%clk 0:02:55]} 2. d4 {[%clk 0:03:00]}  Bg7 {[%clk 0:02:48]} 3. b3 {[%clk 0:03:00]}  Nf6 {[%clk 0:02:46]} 4. Bb2 {[%clk 0:03:00]}  c5 {[%clk 0:02:47]} 5. d5 {[%clk 0:02:58]}  O-O {[%clk 0:02:46]} 6. c4 {[%clk 0:02:58]}  b5 {[%clk 0:02:46]} 7. cxb5 {[%clk 0:02:53]}  Qa5+ {[%clk 0:02:42]} 8. Nbd2 {[%clk 0:02:48]}  Nxd5 {[%clk 0:02:35]} 9. Bxg7 {[%clk 0:02:44]}  Kxg7 {[%clk 0:02:36]} 10. e4 {[%clk 0:02:44]}  Nf4 {[%clk 0:02:34]} 11. Qc2 {[%clk 0:02:37]}  d6 {[%clk 0:02:33]} 12. Bc4 {[%clk 0:02:24]}  a6 {[%clk 0:02:33]} 13. bxa6 {[%clk 0:02:24]}  Nxg2+ {[%clk 0:02:32]} 14. Kf1 {[%clk 0:02:22]}  Bh3 {[%clk 0:02:23]} 15. Kg1 {[%clk 0:02:22]}  Nf4 {[%clk 0:02:23]} 16. Bf1 {[%clk 0:01:56]}  Nc6 {[%clk 0:02:14]} 17. Nc4 {[%clk 0:01:51]}  Qxa6 {[%clk 0:02:10]} 18. Qd2 {[%clk 0:01:30]}  Bxf1 {[%clk 0:02:09]} 19. Rxf1 {[%clk 0:01:29]}  Ne6 {[%clk 0:02:07]} 20. h4 {[%clk 0:01:27]}  Qxa2 {[%clk 0:02:05]} 21. Qc3+ {[%clk 0:01:26]}  f6 {[%clk 0:02:05]} 22. Ng5 {[%clk 0:01:23]}  Ned4 {[%clk 0:02:03]} 23. Qh3 {[%clk 0:01:06]}  Ne2+ {[%clk 0:02:02]} 24. Kh2 {[%clk 0:01:06]}  fxg5 {[%clk 0:02:02]} 25. hxg5 {[%clk 0:01:06]}  Nf4 {[%clk 0:01:43]} 26. Qh6+ {[%clk 0:01:05]}  Kg8 {[%clk 0:01:40]} 27. Ne3 {[%clk 0:01:06]}  Qe2 {[%clk 0:01:36]} 28. Kg1 {[%clk 0:00:56]}  Rf7 {[%clk 0:01:33]} 29. Rh4 {[%clk 0:00:53]}  Ne5 {[%clk 0:01:26]} 30. Kh1 {[%clk 0:00:51]}  Qf3+ {[%clk 0:01:26]} 31. Kh2 {[%clk 0:00:51]}  Ra2 {[%clk 0:01:24]} 0-1


[Site "https://www.chess.com"]

[Event "Titled Tuesday Blitz July 05 Late 2022"]
[White "Eljanov, Pavel"]
[Black "Jaracz, Pawel"]
[WhiteFideId "14102951"]
[BlackFideId "1102222"]
[WhiteElo "2601"]
[BlackElo "2459"]
[Result "1/2-1/2"]
[Round "08"]
[TimeControl "180+1"]
[Date "2022.07.05"]
[WhiteClock "0:00:20"]
[BlackClock "0:00:05"]

1. e4 {[%clk 0:03:00]}  c5 {[%clk 0:02:59]} 2. Nf3 {[%clk 0:03:00]}  d6 {[%clk 0:02:59]} 3. Bb5+ {[%clk 0:02:58]}  Nd7 {[%clk 0:02:58]} 4. Ba4 {[%clk 0:02:58]}  Nf6 {[%clk 0:02:57]} 5. O-O {[%clk 0:02:58]}  g6 {[%clk 0:02:57]} 6. Re1 {[%clk 0:02:57]}  Bg7 {[%clk 0:02:57]} 7. c3 {[%clk 0:02:57]}  O-O {[%clk 0:02:56]} 8. d4 {[%clk 0:02:58]}  e5 {[%clk 0:02:33]} 9. dxe5 {[%clk 0:02:57]}  Nxe5 {[%clk 0:02:28]} 10. Nxe5 {[%clk 0:02:57]}  dxe5 {[%clk 0:02:28]} 11. Qe2 {[%clk 0:02:57]}  a6 {[%clk 0:02:26]} 12. c4 {[%clk 0:02:54]}  Nh5 {[%clk 0:02:02]} 13. Rd1 {[%clk 0:02:41]}  Qh4 {[%clk 0:01:55]} 14. g3 {[%clk 0:02:40]}  Qh3 {[%clk 0:01:55]} 15. Nc3 {[%clk 0:02:35]}  f5 {[%clk 0:01:50]} 16. Bd7 {[%clk 0:02:18]}  Bxd7 {[%clk 0:01:49]} 17. Rxd7 {[%clk 0:02:19]}  Nf6 {[%clk 0:01:48]} 18. Rd3 {[%clk 0:02:09]}  Rad8 {[%clk 0:01:20]} 19. Rxd8 {[%clk 0:02:09]}  Rxd8 {[%clk 0:01:19]} 20. Bg5 {[%clk 0:02:10]}  Rd4 {[%clk 0:01:06]} 21. f3 {[%clk 0:02:04]}  Bh6 {[%clk 0:00:49]} 22. Bxh6 {[%clk 0:01:45]}  Qxh6 {[%clk 0:00:49]} 23. Rd1 {[%clk 0:01:40]}  fxe4 {[%clk 0:00:30]} 24. fxe4 {[%clk 0:01:33]}  Rxd1+ {[%clk 0:00:26]} 25. Qxd1 {[%clk 0:01:34]}  Qe3+ {[%clk 0:00:26]} 26. Kg2 {[%clk 0:01:35]}  Kg7 {[%clk 0:00:25]} 27. Qc2 {[%clk 0:01:21]}  h5 {[%clk 0:00:24]} 28. Qf2 {[%clk 0:01:13]}  Qd3 {[%clk 0:00:23]} 29. Qxc5 {[%clk 0:01:10]}  Ng4 {[%clk 0:00:23]} 30. Qe7+ {[%clk 0:01:01]}  Kg8 {[%clk 0:00:20]} 31. Qe6+ {[%clk 0:00:53]}  Kg7 {[%clk 0:00:19]} 32. Qe7+ {[%clk 0:00:52]}  Kg8 {[%clk 0:00:19]} 33. Kh3 {[%clk 0:00:51]}  Qd2 {[%clk 0:00:17]} 34. Kh4 {[%clk 0:00:51]}  Nh6 {[%clk 0:00:13]} 35. h3 {[%clk 0:00:47]}  Nf7 {[%clk 0:00:12]} 36. Nd5 {[%clk 0:00:46]}  Qe2 {[%clk 0:00:03]} 37. Nf6+ {[%clk 0:00:37]}  Kg7 {[%clk 0:00:04]} 38. Ne8+ {[%clk 0:00:36]}  Kg8 {[%clk 0:00:04]} 39. Nf6+ {[%clk 0:00:28]}  Kg7 {[%clk 0:00:05]} 40. Ne8+ {[%clk 0:00:20]}  Kg8 {[%clk 0:00:05]} 41. Nf6+ {[%clk 0:00:20]} 1/2-1/2


[Site "https://www.chess.com"]

[Event "Titled Tuesday Blitz July 05 Late 2022"]
[White "Fedoseev, Vladimir"]
[Black "Bluebaum, Matthias"]
[WhiteFideId "24130737"]
[BlackFideId "24651516"]
[WhiteElo "2726"]
[BlackElo "2556"]
[Result "1-0"]
[Round "08"]
[TimeControl "180+1"]
[Date "2022.07.05"]
[WhiteClock "0:01:02"]
[BlackClock "0:01:03"]

1. d4 {[%clk 0:02:57]}  Nf6 {[%clk 0:02:59]} 2. c4 {[%clk 0:02:57]}  e6 {[%clk 0:03:00]} 3. Nf3 {[%clk 0:02:57]}  d5 {[%clk 0:03:01]} 4. g3 {[%clk 0:02:58]}  Bb4+ {[%clk 0:03:01]} 5. Bd2 {[%clk 0:02:57]}  a5 {[%clk 0:03:01]} 6. Qc2 {[%clk 0:02:52]}  O-O {[%clk 0:03:01]} 7. Bg2 {[%clk 0:02:53]}  dxc4 {[%clk 0:03:01]} 8. Qxc4 {[%clk 0:02:51]}  b6 {[%clk 0:03:01]} 9. Bxb4 {[%clk 0:02:50]}  Ba6 {[%clk 0:03:02]} 10. Qb3 {[%clk 0:02:49]}  axb4 {[%clk 0:03:02]} 11. Qxb4 {[%clk 0:02:50]}  c5 {[%clk 0:03:03]} 12. Qd2 {[%clk 0:02:50]}  Nc6 {[%clk 0:03:00]} 13. dxc5 {[%clk 0:02:49]}  bxc5 {[%clk 0:03:01]} 14. O-O {[%clk 0:02:49]}  Qb6 {[%clk 0:03:00]} 15. Nc3 {[%clk 0:02:36]}  Rad8 {[%clk 0:02:51]} 16. Qc1 {[%clk 0:02:36]}  Nd4 {[%clk 0:02:50]} 17. Re1 {[%clk 0:02:34]}  Qa5 {[%clk 0:02:33]} 18. Ne5 {[%clk 0:02:12]}  Qc7 {[%clk 0:02:28]} 19. Nf3 {[%clk 0:02:07]}  Rd7 {[%clk 0:02:21]} 20. e3 {[%clk 0:01:48]}  Nxf3+ {[%clk 0:02:05]} 21. Bxf3 {[%clk 0:01:49]}  Rfd8 {[%clk 0:02:00]} 22. Na4 {[%clk 0:01:47]}  c4 {[%clk 0:02:00]} 23. b4 {[%clk 0:01:45]}  cxb3 {[%clk 0:01:40]} 24. axb3 {[%clk 0:01:43]}  Rb8 {[%clk 0:01:40]} 25. Nc5 {[%clk 0:01:36]}  Bb5 {[%clk 0:01:27]} 26. Nxd7 {[%clk 0:01:34]}  Qxd7 {[%clk 0:01:28]} 27. Rd1 {[%clk 0:01:33]}  Qe7 {[%clk 0:01:29]} 28. Qc3 {[%clk 0:01:31]}  h5 {[%clk 0:01:27]} 29. Qe5 {[%clk 0:01:29]}  Rb6 {[%clk 0:01:17]} 30. Ra8+ {[%clk 0:01:28]}  Kh7 {[%clk 0:01:16]} 31. Rdd8 {[%clk 0:01:21]}  Bc6 {[%clk 0:01:02]} 32. Rh8+ {[%clk 0:01:17]}  Kg6 {[%clk 0:01:00]} 33. Bxh5+ {[%clk 0:01:07]}  Nxh5 {[%clk 0:01:00]} 34. Qxh5+ {[%clk 0:01:07]}  Kf6 {[%clk 0:01:01]} 35. Qh4+ {[%clk 0:01:07]}  g5 {[%clk 0:01:02]} 36. Qd4+ {[%clk 0:01:04]}  e5 {[%clk 0:01:02]} 37. Qxb6 {[%clk 0:01:02]}  Qc5 {[%clk 0:01:03]} 1-0


[Site "https://www.chess.com"]